Cogmind - Beta 15 @@@ ROGUE MODE // 2025.07.21 @ 18:45:33 Player: Fazzonamite Result: Destroyed by G-34 Mercenary with Small Laser Performance ------------- Evolutions (0) 0 Regions Visited (1) 200 Robots Destroyed (6) 30 Value Destroyed (133) 133 Prototype IDs (0) 0 Alien Tech Used (0) 0 Bonus (0) 0 TOTAL SCORE: 363 Bonus ------- None Cogmind --------- Core Integrity 0/250 Matter 270/300 Energy 250/250 System Corruption 0% Temperature Warning (346) Movement Rolling (100) Location -10/Materials Parts ------- > --- POWER (1) -------- Ion Engine > --- PROPULSION (2) --- Compact Wheel > --- UTILITY (2) ------ Small Storage Unit Structural Scanner > --- WEAPON (2) ------- (None) > --- INVENTORY (8) ---- Ion Engine Medium Matter Pod (1) Seismic Detector Peak State ------------ > --- POWER ------------ Light Ion Engine > --- PROPULSION ------- Wheel Wheel > --- UTILITY ---------- Small Storage Unit Seismic Detector > --- WEAPON ----------- EM Pulse Gun Light Assault Rifle > --- INVENTORY -------- Ion Engine [Rating: 7] Favorites ----------- Power Light Ion Engine Engine Light Ion Engine Propulsion Wheel Wheel Wheel Utility Small Storage Unit Device Structural Scanner Storage Small Storage Unit Weapon Light Assault Rifle Energy Gun Small Laser Ballistic Gun Light Assault Rifle Special Weapon Mining Laser Build | -11 -10 ------- Run | Yrd Mat Slots Evolved . | . . Power . | . . Propulsion . | . . Utility . | . . Weapon . | . . Parts Attached 14 | 8 6 Power 3 | 1 2 Engine 3 | 1 2 Core . | . . Reactor . | . . Propulsion 4 | 2 2 Treads . | . . Leg . | . . Wheel 4 | 2 2 Hover . | . . Flight . | . . Utility 3 | 2 1 Device 2 | 1 1 Storage 1 | 1 . Processor . | . . Hackware . | . . Protection . | . . Artifact . | . . Weapon 4 | 3 1 Energy Gun 2 | 1 1 Energy Cannon . | . . Ballistic Gun 1 | 1 . Ballistic Cannon . | . . Launcher . | . . Special Weapon 1 | 1 . Impact Weapon . | . . Slashing Weapon . | . . Piercing Weapon . | . . Special Melee Weapon . | . . Unidentified Prototypes . | . . Parts Lost 7 | . 7 Power 1 | . 1 Propulsion 3 | . 3 Utility . | . . Weapon 3 | . 3 Highest Loss Streak 6 | . 6 To Critical Strikes . | . . Average Backups 4 | 2 4 Power 1 | 1 1 Propulsion 1 | . 1 Utility 1 | . 1 Weapon . | . . Tool/Special . | . . Unused Backups 1 | . 1 Power . | . . Propulsion . | . . Utility 1 | . 1 Weapon . | . . Tool/Special . | . . Average Slot Usage (%) 96 | . 96 Engine 14 | . 14 Wheel 25 | . 25 Device 14 | . 14 Storage 14 | . 14 Energy Gun 10 | . 10 Ballistic Gun 13 | . 13 Special Weapon 2 | . 2 Peak Build Rating 7 | 7 7 Average Rating 6 | 5 6 On Entrance 3 | . 7 Naked Turns . | . . Heaviest Build 12 | 12 11 Greatest Support 20 | 20 20 Greatest Overweight (x) . | . . Average Overweight (x) . | . . Largest Inventory Capacity 8 | 8 8 Average Capacity 7 | 7 8 Most Carried 6 | 5 6 Average Carried 4 | 2 4 Final Capacity 8 | 8 8 Final Carried 3 | 3 3 Class Distribution -------------------- 100% | Mutant Dominant Class ---------------- Mutant | -10/Materials Resources | -11 -10 ----------- Run | Yrd Mat Matter Collected 310 | 283 27 Remotely . | . . Salvage Created 237 | 113 124 Parts 18 | 6 12 Haulers Intercepted . | . . Recyclers Shooed . | . . Parts Field Recycled . | . . Retrieved Matter . | . . Parts Self-Destructed . | . . Prevented . | . . Kills | -11 -10 ------- Run | Yrd Mat Combat Hostiles Destroyed 3 | . 3 Guns 2 | . 2 Cannons 1 | . 1 Classes Destroyed 4 | 2 2 Builder 1 | . 1 Tunneler 1 | 1 . Recycler 1 | 1 . Grunt 3 | . 3 Best Kill Streak 3 | 2 3 Combat Bots Only 2 | . 2 Max Kills in Single Turn 1 | 1 1 Gunslinging . | . . Exploded . | . . Melee . | . . Uniques/NPCs Destroyed . | . . Combat | -11 -10 -------- Run | Yrd Mat Hostile Shots Fired 68 | . 68 Missed 13 | . 13 Hits 55 | . 55 Projectile 55 | . 55 Critical Strikes 2 | . 2 Damage Taken 733 | . 733 Core 253 | . 253 Absorbed by Shields . | . . Core Remaining (%) 100 | 100 . Volleys Fired 34 | 3 31 Largest 2 | 2 2 Hottest 120 | 60 120 Shots Fired 62 | 6 56 Gun 59 | 6 53 Cannon . | . . Launcher . | . . Special 3 | . 3 Kinetic 32 | 3 29 Thermal 27 | . 27 Explosive . | . . Electromagnetic 3 | 3 . Robot Hit Streak 8 | 4 8 Robot Miss Streak 3 | 1 3 Penetration Max . | . . Secondary Targets . | . . Shots Hit Robots 45 | 5 40 Core Hits 15 | 3 12 Critical Kills . | . . Critical Parts Destroyed 1 | . 1 Critical Strikes 1 | . 1 Destroy 1 | . 1 Melee Attacks . | . . Impact . | . . Slashing . | . . Piercing . | . . Sneak Attacks . | . . Combat Hostiles . | . . Follow-up Attacks . | . . Damage Inflicted 484 | 58 426 Guns 436 | 58 378 Cannons . | . . Explosions . | . . Melee . | . . Ramming . | . . Kinetic 226 | 18 208 Thermal 218 | . 218 Explosive . | . . Electromagnetic 40 | 40 . Impact . | . . Slashing . | . . Piercing . | . . Highest Corruption . | . . Average Corruption . | . . Corruption Purged . | . . Corruption Blocked . | . . Overload Shots . | . . Overflow Damage . | . . Projectiles . | . . Explosions . | . . Melee . | . . Knockbacks . | . . Impact . | . . Kinetic . | . . Secondary . | . . Self-Inflicted Damage . | . . Shots . | . . Rammed . | . . Targets Rammed . | . . Kicked . | . . Crushed . | . . Highest Temperature 340 | 20 340 Average Temperature 128 | 15 136 Received Heat Transfer 453 | . 453 Siege Activations . | . . Martial Activations . | . . Shielding Activations . | . . Robots Disrupted . | . . Combat Hostiles . | . . Robots Corrupted . | . . Combat Hostiles . | . . Parts Fried . | . . Impact Corruptions . | . . Robots Melted . | . . Combat Hostiles . | . . Parts Melted . | . . Heat Transferred 475 | . 475 Parts Sabotaged . | . . Parts Stolen . | . . Parts Stripped . | . . Power Chain Reactions . | . . Alert | -11 -10 ------- Run | Yrd Mat Maximum Alert Level . | . . Low Security (%) 100 | 100 100 Level 1 . | . . Level 2 . | . . Level 3 . | . . Level 4 . | . . Level 5 . | . . High Security . | . . Max Security . | . . Peak Influence 41 | 10 41 Initial . | . . Average 8 | 1 10 Influence Increases 86 | 10 76 Destroy 0b10 Robot/C 60 | . 60 Destroy 0b10 Robot/NC 15 | 10 5 Destroy Leader 10 | . 10 Destroy Structure 1 | . 1 Influence Decreases 86 | 10 76 Time Decay 66 | 10 56 Lost Part 20 | . 20 Squads Dispatched . | . . Investigation . | . . Extermination . | . . Reinforcement . | . . Assault . | . . Garrison . | . . Intercept . | . . Searches Triggered . | . . Construction Impeded . | . . Haulers Reinforced . | . . Active Scanning Responses . | . . Cargo Convoy Interrupts . | . . Stealth | -11 -10 --------- Run | Yrd Mat Distress Signals 1 | . 1 Communications Jammed . | . . Distress Signals . | . . Times Spotted 11 | . 11 Peak Tracking Total 6 | . 6 Tactical Retreats . | . . Traps | -11 -10 ------- Run | Yrd Mat Traps Triggered . | . . Indirectly . | . . Trap Hack Attempts . | . . Triggered . | . . Disarmed . | . . Reprogrammed . | . . Reused . | . . Traps Extracted . | . . Installed . | . . Triggered . | . . Machines | -11 -10 ---------- Run | Yrd Mat Machines Disabled . | . . Max in Single Turn . | . . Machines Repaired . | . . Machines Dismantled . | . . Machines Sabotaged . | . . Overloaded Fab Kills . | . . Hacking | -11 -10 --------- Run | Yrd Mat Machines Accessed . | . . Terminals . | . . Fabricators . | . . Repair Stations . | . . Recycling Units . | . . Scanalyzers . | . . Garrison Access . | . . Total Hacks . | . . Successful . | . . Failed . | . . Catastrophic . | . . Database Lockouts . | . . Manual . | . . Terminals . | . . Fabricators . | . . Repair Stations . | . . Recycling Units . | . . Scanalyzers . | . . Garrison Access . | . . Terminal Hacks . | . . Fabricator Hacks . | . . Repair Station Hacks . | . . Recycling Unit Hacks . | . . Scanalyzer . | . . Garrison Access Hacks . | . . Unauthorized Hacks . | . . Terminals . | . . Fabricators . | . . Repair Stations . | . . Recycling Units . | . . Scanalyzers . | . . Garrison Access . | . . Data Cores Recovered . | . . Used . | . . Hacking Detections . | . . Full Trace Events . | . . Feedback Events . | . . Feedback Blocked . | . . Robot Schematics Acquired . | . . Robots Built . | . . Authchips . | . . Time . | . . Total Robot Build Rating . | . . Part Schematics Acquired . | . . Parts Built . | . . Authchips . | . . Time . | . . Total Part Build Rating . | . . Parts Repaired . | . . Time . | . . Parts Recycled . | . . Recycled Matter . | . . Retrieved Matter . | . . Retrieved Components . | . . Parts Scanalyzed . | . . Part Schematics Acquired . | . . Parts Damaged . | . . Bothacking | -11 -10 ------------ Run | Yrd Mat Used RIF Installer . | . . Robots Hacked . | . . Non-combat . | . . Combat . | . . Robot Hacks Applied . | . . Relay Couplers Released . | . . Fabnet Peak Effective % . | . . Robots Rewired . | . . Allies Hacked . | . . Hacks Repelled . | . . Allies | -11 -10 -------- Run | Yrd Mat Total Allies . | . . Largest Group . | . . Highest-Rated Group . | . . Highest-Rated Ally . | . . Total Orders . | . . Ally Attacks . | . . Total Damage . | . . Kills . | . . Allies Corrupted . | . . Allies Melted . | . . Intel | -11 -10 ------- Run | Yrd Mat Active Infowar (turns) 245 | 30 215 Structural 164 | . 164 Seismic 81 | 30 51 Robot Analysis Total . | . . Derelict Logs Recovered . | . . Drone Launches . | . . Drone Recoveries . | . . Exploration | -11 -10 ------------- Run | Yrd Mat Turns Passed 281 | 65 216 Spaces Moved 167 | 52 115 Core 11 | 11 . Treads . | . . Legs . | . . Wheels 156 | 41 115 Hover . | . . Flight . | . . Fastest Speed 50 | 50 80 Average Speed 78 | 73 80 Slowest Speed 80 | 80 80 Overloaded Moves . | . . Propulsion Burnouts . | . . Robots Hopped . | . . Potential Cave-ins . | . . Cave-ins Triggered . | . . Exploration Rate (%) 16 | 4 29 Regions Visited 1 Branch Regions . Pre-discovered Areas . | . . Known Exits Taken . | . . Unknown Exits Taken 1 | 1 . Scrap Searched . | . . Spaces Dug . | . . Terrain Destroyed 1 | . 1 Melee . | . . Projectile 1 | . 1 AOE . | . . Terrain Rammed . | . . Walls Destroyed . | . . Machines Disabled . | . . Actions | -11 -10 --------- Run | Yrd Mat Total 256 | 73 183 Wait 25 | . 25 Move 166 | 51 115 Hop . | . . Pick Up 15 | 10 5 Fast Attach 1 | 1 . Attach 12 | 7 5 Detach . | . . Swap 1 | . 1 Drop 2 | 1 1 Fire 34 | 3 31 Melee . | . . Ram . | . . Kick . | . . Crush . | . . Escape Stasis . | . . Rewire . | . . Trap . | . . Miscellaneous . | . . Route ------- -11/Scrapyard -10/Materials (discovered 1 exit: [*Min]) History --------- Turn | Location | Event 23 | -11/Scrapyard | Discovered new exit (range 16) 66 | -11/Scrapyard | Entered Materials 206 | -10/Materials | Discovered new exit (range 9) 248 | -10/Materials | Core integrity fell below 50% 263 | -10/Materials | Core integrity fell below 20% 282 | -10/Materials | Destroyed by G-34 Mercenary with Small Laser Last Messages --------------- 00231_ Lgt. Ion Engine destroyed. 00235_ Critical hit (Burn: +37). 00235_ G-34 Mercenary destroyed. 00243_ Wheel destroyed. 00243_ K-01 Serf collects debris. 00251_ R-06 Scavenger collects Aluminum Leg. 00252_ R-06 Scavenger suffers critical hit (Destroy). 00252_ Destroyed Tractor Beam. 00252_ K-01 Serf destroyed. 00260_ K-01 Serf collects debris. 00263_ Wheel destroyed. 00263_ Critical hit (Burn: +37). 00264_ K-01 Serf collects debris. 00269_ Wheel destroyed. 00270_ R-06 Scavenger collects Heat Sink. 00270_ K-01 Serf collects debris. 00274_ R-06 Scavenger collects Lgt. Ion Engine. 00276_ Lgt. Assault Rifle destroyed. 00278_ R-06 Scavenger collects Ion Engine. 00280_ Sml. Laser destroyed. Map ----- +----------------------------------------------------+ | ?????????????????????????????????????????????????? | | ?????????????????????????????????????????????????? | | ?????????????????????????????????????????????????? | | ?????????????????????????????????????????????????? | | ?????????????????????????????????????????????????? | | ?????????????????????????????????????????????????? | | ?????????????????????????????????????????????????? | | ????????????????## ???"??????????????????????????? | | ????????????????## ? ?????????????????????????? | | ????????????????## ????????????????????????? | | ????????## ?????## ##????????????????????????? | | ????????## ###### # ????????????????????????? | | ???????### ###### # ????????????????????????? | | ???????### # ????????????????????????? | | ?????? # # ????????????????????????? | | ?????? # # ????????????????????????? | | ?????? # " # ????????????????????????? | | ?????? + T # ????????????????????????? | | ?????? # " # #???????????????? | | ????? # ############## ???????????? | | ?????### ## #####k ?????????? | | ????? w ?????????? | | ????? r < ##??????????? | | ????? m ##??????????? | | ?????############### ##g% g ##?? ##??????????? | | ?????## # ##@ !"!" ##???????????????? | | ?????## """ """ + ##""!"!""##???????????????? | | ?????## """ """ # ###########???????????????? | | ?????## """ """ # # #???????????????? | | ?????## # # ????????????????????????? | | ?????#####+######### # ????????????????????????? | | ?????##### ######### + ????????????????????????? | | ????????## ##????? # # ????????????????????????? | | ????????## ##?????"# # "???????????????????????? | | ????????## ##?????"# # ""??????????????????????? | | ????????## ## ????"# # ????????????????????? | | ????????## ## + ######????????????????????? | | ????????## ######## ######????????????????????? | | ????????## ##????????????????????????? | | ????????## ######### ###????????????????????????? | | ????????## ######### ###??????#?????????????????? | | ########## ##??????# ######## ######+???????????? | | ########## ##??#####+## ???????????? | | ## # ##??# # ??????????? | | ## = + ##??#] # ??????????????? | | ## # ##??# """ + #?????????????????????? | | ######+### ##### """ # #?????????????????????? | | ## =##### """ # #?????????????????????? | | ## *%= + # #?????????????????????? | | ####+###### %| #############?????????????????????? | +----------------------------------------------------+ Best States ------------- Heat Dissipation 25 Energy Generation 10 Energy Capacity 250 Matter Stores 300 Matter Capacity 300 Sight Range 16 Terrain Scan Density 10 Evasion (%) 50 Item Schematics ----------------- None Robot Schematics ------------------ None Fabricated ------------ Nothing Repaired ---------- Nothing Alien Tech Used ----------------- None Achievements -------------- None Challenges ------------ None Game ------ Seed DroneRiotSegregator Manual? 0 Play Time 00:09:13 Cumulative 194.5 hours Start 2025.07.21 @ 18:39:17 End 2025.07.21 @ 18:45:33 Sessions 1 Manual Loads 0 Difficulty Rogue Special Mode None Game No. 125 Rogue 125 Adventurer 0 Explorer 0 Win Type - Total 4 Types 3/0/1/0/0/0/0/0/0/0 Lore% 56 Gallery% 54 Achievement% 51 Wizard Run 0 Options --------- Layout 2 ASCII 0 Keyboard 0 Movement Mouse Keybinds 0 Fullscreen 1 Font 48/Smallcaps Map View 55x44 Zoom Use 0% Tactical HUD 1 Map Filters NONE Filters NONE Steam 1 RUN: 4aa8661a-d782-4d6b-b1bf-e621475817ea